bitfinex/quotes_ETHUSD_20250906
["timestamp","ask_amount","ask_price","bid_price","bid_amount"]
[1757153094712,1.5896,4291.4,4291.3,21.60829618]
[1757153095015,0.4495,4291.4,4291.3,25.47329618]
[1757153095512,0.001,4291.4,4291.3,21.60829618]
[1757153095718,0.001,4291.4,4291.3,25.47229618]
[1757153100618,0.4495,4291.4,4291.3,25.47229618]
[1757153101024,0.4495,4291.4,4291.3,21.60829618]
[1757153101230,0.4495,4291.4,4291.3,25.47229618]
[1757153102002,0.001,4291.4,4291.3,25.47229618]
[1757153103500,0.001,4291.4,4291.3,25.58829618]
[1757153105213,0.4485,4292.1,4291.9,2.3299704]
[1757153105397,1.5896,4292.3,4292.2,2.32980755]
[1757153105597,0.001,4292.3,4292.2,10.90580755]
[1757153105909,0.2904,4292.3,4292.2,10.90580755]
[1757153106116,0.2904,4292.3,4292.2,10.90680755]
[1757153106322,1.879,4292.3,4292.2,10.90680755]
[1757153107032,1.879,4292.3,4292.2,7.04280755]
[1757153107237,1.879,4292.3,4292.2,10.90580755]
[1757153109532,0.7389,4292.3,4292.2,10.90580755]
[1757153109731,0.001,4292.3,4292.2,10.90580755]
[1757153109922,1.9135,4292.3,4292.2,4.04280755]
[1757153110241,1.9135,4292.3,4292.2,7.90580755]
[1757153110410,1.9135,4292.3,4292.2,1.713]
[1757153110601,1.9135,4292.3,4292.2,5.578]
[1757153110807,2.10485,4292.3,4292.2,1.713]
[1757153111320,2.10485,4292.3,4291.8,2.3300218]
[1757153111521,1.6225,4292.2,4291.8,2.3300218]
[1757153111748,1.6225,4292.2,4291.8,2.18e-05]
[1757153111903,0.29,4291.9,4291.8,2.18e-05]
[1757153112109,0.48125,4291.9,4291.8,5.6310436]
[1757153112328,2.10375,4291.9,4291.8,5.6310436]
[1757153113339,2.10375,4291.9,4291.8,3.3010218]
[1757153114849,2.10375,4291.9,4291.8,5.63104649]
[1757153115408,2.10375,4291.9,4291.8,19.12104649]
[1757153115612,1.9125,4291.9,4291.8,19.12104649]
[1757153117540,0.7287,4291.9,4291.8,19.12104649]
[1757153118849,1.9125,4291.9,4291.8,19.12104649]
[1757153120570,1.9125,4291.9,4291.8,13.4900218]
[1757153121172,1.9125,4291.9,4291.8,17.3540218]
[1757153121367,2.10375,4291.9,4291.8,17.3540218]
[1757153121734,2.10375,4291.9,4291.8,19.68404649]
[1757153122281,0.792,4291.8,4289.9,1.34179874]
[1757153122451,0.02912598,4291.7,4290.0,33.865]
[1757153122637,1.6225,4291.6,4290.2,2.33089366]
[1757153122837,1.6225,4291.5,4291.0,2.33044769]
[1757153123064,0.29,4291.1,4291.0,2.33044769]
[1757153123258,0.29,4291.1,4290.7,2.33004093]
[1757153123472,0.4387,4291.0,4290.9,2.33051341]
[1757153123678,0.7287,4291.0,4290.9,6.19751341]
[1757153125252,1.9125,4291.0,4290.9,6.19751341]
[1757153125465,1.9125,4291.0,4290.9,19.68851341]
[1757153126290,1.9125,4291.0,4290.9,17.357]
[1757153126664,1.9125,4291.0,4290.9,19.68751341]
[1757153126865,0.7287,4291.0,4290.9,19.68751341]
[1757153128875,1.9125,4291.0,4290.9,17.357]
[1757153130665,1.9125,4291.0,4290.9,19.68751341]
[1757153130878,0.4387,4291.0,4290.9,19.68751341]
[1757153132186,0.5547,4291.0,4290.9,19.68751341]
[1757153133908,0.4387,4291.7,4291.4,2.33023322]
[1757153134079,1.34855,4291.7,4291.6,1.713]
[1757153134280,1.63855,4291.7,4291.6,1.713]
[1757153134502,0.025,4291.8,4291.6,1.713]
[1757153134706,0.025,4291.8,4291.7,4.04307898]
[1757153135112,0.025,4291.8,4291.7,1.71307898]
[1757153135317,0.4637,4291.8,4291.7,4.04315796]
[1757153135624,0.025,4291.8,4291.7,7.91023694]
[1757153138798,0.4637,4291.8,4291.7,7.91023694]
[1757153139211,0.7537,4291.8,4291.7,7.91023694]
[1757153139604,0.7537,4291.8,4291.7,4.04323694]
[1757153140111,0.7537,4291.8,4291.7,7.90923694]
[1757153141407,0.4637,4291.8,4291.7,7.90923694]
[1757153145428,0.7788,4291.8,4291.7,7.90923694]
[1757153145921,0.7798,4291.8,4291.7,7.90907898]
[1757153147719,0.7798,4291.8,4291.7,4.04307898]
[1757153147924,0.7798,4291.8,4291.7,7.90807898]
[1757153148626,0.7798,4291.8,4291.7,1.713]
[1757153148627,2.0646,4291.8,4291.7,1.713]
[1757153148825,2.27397233,4291.8,4291.7,5.577]
[1757153149026,2.27397233,4291.8,4291.7,1.713]
[1757153150151,0.116,4291.7,4291.1,2.33040452]
[1757153150450,0.23537233,4291.8,4291.6,1.713]
[1757153150751,0.3151,4291.7,4291.6,1.713]
[1757153150899,4.38552846,4291.7,4290.9,2.33048894]
[1757153151100,0.116,4291.1,4291.0,3.865]
[1757153151295,2.1714,4291.1,4290.9,2.33047532]
[1757153151624,0.4311,4291.1,4290.7,2.32956855]
[1757153151825,0.116,4290.9,4290.8,2.33056772]
[1757153152029,0.4311,4290.9,4290.8,2.33056772]
[1757153152208,2.1714,4290.9,4290.8,2.33056772]
[1757153152408,2.1714,4290.9,4290.8,6.19556772]
[1757153155411,2.1714,4290.9,4290.8,19.68756772]
[1757153157640,2.1714,4290.9,4290.8,19.68656772]
[1757153158953,2.27254,4290.9,4290.8,7.067]
[1757153159155,2.27254,4290.9,4290.8,10.931]
[1757153162159,4.6031007,4290.9,4290.0,2.33096445]
[1757153162406,4.6031007,4290.9,4290.1,2.573]
[1757153162407,4.86290563,4290.8,4290.1,2.573]
[1757153162586,1.7403,4290.7,4290.2,2.573]
[1757153162763,0.3151,4290.3,4289.3,5.33132898]
[1757153163098,2.24830456,4290.6,4290.1,2.33091391]
[1757153163400,1.7403,4290.5,4290.1,2.33091391]
[1757153163858,0.50800456,4290.6,4290.3,0.004]
[1757153164196,0.3151,4290.4,4290.3,0.004]
[1757153164397,0.3151,4290.4,4290.3,3.865]
[1757153164736,2.0554,4290.4,4290.3,3.865]
[1757153164980,2.0554,4290.4,4290.1,2.33090623]
[1757153165144,1.5999,4290.4,4290.1,2.33090623]
[1757153165484,1.5999,4290.4,4289.9,0.00405492]
[1757153165485,0.4555,4290.3,4290.2,11.779]
[1757153165648,0.4555,4290.3,4290.2,13.492]
[1757153165848,2.0554,4290.3,4290.2,15.82289366]
[1757153166056,1.79280456,4290.6,4290.2,19.68789366]
[1757153166257,1.2848,4290.6,4290.5,1.713]
[1757153166475,0.792,4290.8,4290.5,1.713]
[1757153166779,0.3151,4290.6,4290.1,2.3309411]
[1757153166981,1.7403,4290.5,4290.1,2.3309411]
[1757153167180,0.817,4290.8,4289.9,2.33479153]
[1757153167401,1.7403,4290.4,4290.1,2.3309091]
[1757153167704,0.4555,4290.6,4290.2,5.85188124]
[1757153167851,0.025,4290.8,4290.2,5.85188124]
[1757153168053,0.4555,4290.5,4289.9,2.33093662]
[1757153168253,0.4555,4290.5,4290.1,2.33090348]
[1757153168705,0.4555,4290.4,4290.1,2.33090348]
[1757153168848,0.4555,4290.4,4290.2,2.33089229]
[1757153169489,1.2848,4290.5,4290.2,2.33084239]
[1757153169651,1.2848,4290.5,4290.3,3.865]
[1757153169857,1.7501,4290.5,4290.3,3.865]
[1757153170274,0.4653,4290.5,4290.3,6.19582626]
[1757153170490,0.4653,4290.5,4290.3,3.865]
[1757153171665,1.7274,4290.5,4290.3,3.865]
[1757153172683,0.116,4290.3,4290.2,2.33088891]
[1757153172963,0.116,4290.3,4290.2,6.19488891]
[1757153173591,0.025,4290.8,4290.7,2.33062204]
[1757153173805,0.141,4290.8,4290.7,6.19562204]
[1757153174352,0.025,4290.8,4290.7,6.19562204]
[1757153174691,0.025,4290.8,4290.7,9.19562204]
[1757153175365,0.025,4290.8,4290.7,18.52162204]
[1757153175549,0.025,4290.8,4290.7,25.84132204]
[1757153175756,0.025,4290.8,4290.7,55.84132204]
[1757153176270,0.00134839,4290.8,4290.7,55.84132204]
[1757153176466,0.00134839,4290.8,4290.7,46.63132204]
[1757153177574,0.00134839,4290.8,4290.7,39.56332204]
[1757153177785,0.00134839,4290.8,4290.7,40.35532204]
[1757153177989,0.026,4291.8,4290.7,40.35532204]
[1757153177990,0.026,4291.8,4291.7,2.33007898]
[1757153178171,0.001,4291.8,4291.7,9.31791678]
[1757153178371,1e-08,4291.8,4291.7,39.56377898]
[1757153179095,0.02182386,4292.8,4292.7,2.32953618]
[1757153179297,0.02182386,4292.8,4292.7,6.19653618]
[1757153181074,2.05282386,4292.8,4291.1,0.2517]
[1757153181273,0.32542386,4292.8,4292.6,2.32956955]
[1757153181472,1.7274,4292.7,4292.6,2.32956955]
[1757153181671,2.031,4292.7,4292.6,6.19756955]
[1757153184594,0.02182386,4292.8,4292.7,2.32953618]
[1757153184824,1.28392386,4292.8,4292.7,2.32953618]
[1757153184974,1.58752386,4292.8,4292.7,2.32953618]
[1757153185416,0.02182386,4292.8,4292.7,14.10653618]
[1757153185612,0.02182386,4292.8,4292.7,15.81953618]
[1757153186600,0.02182386,4292.8,4292.7,15.98323618]
[1757153188329,0.02182386,4292.8,4292.7,15.81953618]
[1757153188531,0.48712386,4292.8,4292.7,15.81953618]
[1757153188918,1.74922386,4292.8,4292.7,15.81953618]
[1757153190146,1.74922386,4292.8,4292.7,16.51801873]
[1757153190444,0.48712386,4292.8,4292.7,16.51801873]
[1757153190800,0.02182386,4292.8,4292.7,16.51801873]
[1757153192448,0.48712386,4292.8,4292.7,16.51801873]
[1757153192601,0.02182386,4292.8,4292.7,16.51801873]
[1757153194936,0.02182386,4292.8,4292.7,20.38201873]
[1757153195142,1.74922386,4292.8,4292.7,20.38201873]
[1757153196065,0.02182386,4292.8,4292.7,20.38201873]
[1757153198268,2.05282386,4292.8,4292.7,20.38201873]
[1757153198552,2.05282386,4292.8,4292.7,16.51801873]
[1757153198759,2.05282386,4292.8,4292.7,20.38201873]
[1757153199244,2.05282386,4292.8,4292.7,16.51801873]
[1757153199444,2.05282386,4292.8,4292.7,20.38101873]
[1757153202395,1.58752386,4292.8,4292.7,20.38101873]
[1757153202761,2.04472386,4292.8,4292.7,20.38101873]
[1757153203379,2.26079625,4292.8,4292.7,18.05048255]
[1757153203692,2.26079625,4292.8,4292.7,19.68153618]
[1757153206379,1.58752386,4292.8,4292.7,19.68153618]
[1757153206583,2.04472386,4292.8,4292.7,19.68153618]
[1757153208995,2.04472386,4292.8,4292.7,15.81953618]
[1757153209199,2.04472386,4292.8,4292.7,19.68153618]
[1757153211194,2.04472386,4292.8,4292.7,13.49]
[1757153211398,2.26079625,4292.8,4292.7,7.064]
[1757153212509,2.26079625,4292.8,4292.7,10.926]
[1757153215397,2.26079625,4292.8,4292.7,13.487]
[1757153215576,2.26079625,4292.8,4292.7,17.349]
[1757153216005,5.38227817,4292.8,4292.7,11.775]
[1757153216303,2.32976705,4292.3,4291.6,2.33011999]
[1757153216514,3.12176705,4292.3,4292.2,1.712]
[1757153216806,5.29706705,4292.3,4291.5,2.33014593]
[1757153217106,2.32988321,4292.1,4291.3,2.33024845]
[1757153217305,1.8738,4292.0,4291.4,2.33024182]
[1757153217605,0.3015,4291.4,4290.7,2.3305686]
[1757153217804,0.7587,4291.4,4291.1,2.33040479]
[1757153217960,1.7181,4291.4,4291.3,5.33029618]
[1757153218365,1.7181,4291.4,4291.3,2.99929618]
[1757153218560,2.1753,4291.4,4290.5,0.69875912]
[1757153218809,0.4572,4291.3,4291.1,2.33039505]
[1757153218976,1.8738,4291.3,4291.0,2.33044603]
[1757153219181,0.3015,4291.1,4290.8,2.32998403]
[1757153219405,1.7181,4291.1,4290.9,2.33047373]
[1757153219564,0.4572,4291.0,4290.9,2.3304688]
[1757153219986,1.4166,4291.1,4291.0,2.3304591]
[1757153220193,1.8738,4291.1,4291.0,2.3304591]
[1757153220581,1.8738,4291.1,4291.0,6.1954591]
[1757153221471,2.1753,4291.1,4291.0,2.3304591]
[1757153221684,1.7181,4291.1,4291.0,6.1954591]
[1757153221887,0.4572,4291.4,4291.1,2.33037118]
[1757153222206,1.8738,4291.3,4291.2,6.19433786]
[1757153222406,2.1753,4291.3,4291.2,6.19433786]
[1757153223123,2.1753,4291.3,4291.2,3.864]
[1757153223607,0.23841058,4291.7,4291.2,3.864]
[1757153223904,0.05,4291.8,4291.2,3.864]
[1757153223905,1.8738,4291.6,4291.2,6.19434138]
[1757153224121,1.8738,4291.5,4291.2,6.19434138]
[1757153224328,0.3015,4291.3,4291.2,6.19434138]
[1757153224624,2.1753,4291.3,4291.2,6.19434138]
[1757153225416,2.1753,4291.3,4291.2,19.68434138]
[1757153226570,1.4416,4291.8,4291.3,2.33025838]
[1757153226783,1.8738,4291.7,4291.4,6.19624187]
[1757153226908,1.4166,4291.7,4291.6,1.713]
[1757153227115,1.7181,4291.7,4291.6,1.713]
[1757153227408,0.116,4291.6,4291.4,2.33045732]
[1757153227830,0.116,4291.6,4291.5,2.49388758]
[1757153228027,0.116,4291.7,4291.6,2.33013328]
[1757153228244,0.116,4291.7,4291.6,6.36083328]
[1757153229847,0.116,4291.7,4291.6,6.46313328]
[1757153230054,0.116,4291.7,4291.6,6.36083328]
[1757153230255,0.025,4291.8,4291.7,2.33007898]
[1757153230624,0.025,4291.8,4291.7,2.49377898]
[1757153235538,0.025,4291.8,4291.7,18.76677898]
[1757153236224,0.4738,4291.8,4291.7,18.60307898]
[1757153236571,2.072,4291.8,4291.7,18.60307898]
[1757153236951,0.4738,4291.8,4291.7,18.60307898]
[1757153237157,0.026,4291.8,4291.7,18.60307898]
[1757153238673,2.072,4291.8,4291.7,22.46807898]
[1757153241398,2.072,4291.8,4291.7,18.60307898]
[1757153241596,2.072,4291.8,4291.7,22.46107898]
[1757153241799,2.072,4291.8,4291.7,22.45607898]
[1757153242679,2.072,4291.8,4291.7,20.137]
[1757153243005,2.072,4291.8,4291.7,22.46707898]
[1757153243899,2.072,4291.8,4291.7,9.30807898]
[1757153244104,2.072,4291.8,4291.7,9.15607898]
[1757153245100,2.072,4291.8,4291.7,12.98807898]
[1757153245398,2.072,4291.8,4291.7,19.41207898]
[1757153247397,0.026,4291.8,4291.7,19.41207898]
[1757153247985,0.4738,4291.8,4291.7,19.40607898]
[1757153248675,2.072,4291.8,4291.7,19.40607898]
[1757153251407,2.072,4291.8,4291.7,17.355]
[1757153251607,2.072,4291.8,4291.7,19.68507898]
[1757153252083,2.072,4291.8,4291.7,15.81507898]
[1757153253323,2.072,4291.8,4291.7,19.68007898]
[1757153254528,2.072,4291.8,4291.7,19.51107898]
[1757153255340,2.072,4291.8,4291.7,17.355]
[1757153255791,2.072,4291.8,4291.7,15.82007898]
[1757153256989,2.072,4291.8,4291.7,19.68407898]
[1757153259194,2.072,4291.8,4291.7,15.82007898]
[1757153259395,2.072,4291.8,4291.7,19.68407898]
[1757153262021,2.072,4291.8,4291.7,17.35407898]
[1757153262492,2.072,4291.8,4291.7,19.68415796]
[1757153262994,1.7744,4291.8,4291.7,19.68415796]
[1757153263648,2.0712,4291.8,4291.7,19.68415796]
[1757153264331,2.0712,4291.8,4291.7,19.68315796]
[1757153264706,0.026,4291.8,4291.7,19.84685796]
[1757153267013,0.026,4291.8,4291.7,19.68315796]
[1757153268353,0.026,4291.8,4291.7,22.84685796]
[1757153268524,0.00109624,4291.8,4291.7,23.24655796]
[1757153268863,0.00109624,4291.8,4291.7,53.36255796]
[1757153269142,0.00109624,4291.8,4291.7,54.06111045]
[1757153269346,0.001,4292.3,4292.2,2.32980755]
[1757153269547,0.001,4292.3,4292.2,9.19380755]
[1757153269852,0.001,4292.3,4292.2,9.35750755]
[1757153270078,0.001,4292.3,4292.2,9.47350755]
[1757153271762,0.001,4292.3,4292.2,9.47250755]
[1757153275445,0.001,4292.3,4292.2,18.67850755]
[1757153278380,0.001,4292.3,4292.2,14.81550755]
[1757153278547,0.001,4292.3,4292.2,18.51380755]
[1757153279085,0.001,4292.3,4292.2,14.81550755]
[1757153279287,0.001,4292.3,4292.2,18.67750755]
[1757153289313,0.001,4292.7,4292.4,3.0]
[1757153289474,0.001,4292.7,4292.6,4.712]
[1757153289677,0.001,4292.7,4292.6,8.574]
[1757153289872,0.001,4292.7,4292.6,10.90359045]
[1757153290098,0.001,4292.7,4292.6,11.60205023]
[1757153292568,0.4732,4292.7,4292.6,11.60205023]
[1757153292771,1.84,4292.7,4292.6,11.60205023]
[1757153294515,0.4732,4292.7,4292.6,7.74005023]
[1757153294716,1.6564,4292.7,4292.6,11.60205023]
[1757153294874,0.001,4292.7,4292.6,11.60205023]
[1757153295504,0.001,4292.7,4292.6,14.38505023]
[1757153298622,4.539e-05,4292.7,4292.6,14.38505023]
[1757153298819,4.539e-05,4292.7,4292.6,14.54875023]
[1757153299520,4.539e-05,4292.7,4292.6,11.76575023]
[1757153301019,4.539e-05,4292.7,4292.6,11.60205023]
[1757153301477,4.539e-05,4292.7,4292.6,9.89005023]
[1757153301884,1.65544539,4292.7,4292.6,9.89005023]
[1757153302081,2.24364539,4292.7,4292.6,6.02805023]
[1757153302309,2.41137232,4292.7,4292.6,9.89005023]
[1757153302699,2.41137232,4292.7,4292.6,6.02805023]
[1757153302894,2.41137232,4292.7,4292.6,9.89005023]
[1757153303103,2.24364539,4292.7,4292.6,9.89005023]
[1757153305521,2.24364539,4292.7,4292.6,23.37605023]
[1757153309019,1.48284539,4292.7,4292.6,23.37605023]
[1757153309190,1.77144539,4292.7,4292.6,23.37605023]
[1757153309392,2.24364539,4292.7,4292.6,23.37605023]
[1757153309700,4.539e-05,4292.7,4292.6,23.37605023]
[1757153310099,4.539e-05,4292.7,4292.6,23.53975023]
[1757153311835,4.539e-05,4292.7,4292.6,19.51405023]
[1757153312012,4.539e-05,4292.7,4292.6,23.37605023]
[1757153312338,4.539e-05,4292.7,4292.6,23.37705023]
[1757153312700,4.539e-05,4292.7,4292.6,23.54075023]
[1757153313405,4.539e-05,4292.7,4292.6,23.37705023]
[1757153313634,4.539e-05,4292.7,4292.6,19.51405023]
[1757153313850,4.539e-05,4292.7,4292.6,23.37705023]
[1757153314649,0.02182386,4292.8,4292.7,5.32953618]
[1757153315317,0.02182386,4292.8,4292.7,6.02797482]
[1757153315838,0.02182386,4292.8,4292.7,6.19167482]
[1757153317640,0.02182386,4292.8,4292.7,6.02797482]
[1757153318520,0.02182386,4292.8,4292.7,6.19167482]
[1757153320910,0.02182386,4292.8,4292.7,6.02797482]
[1757153321110,2.16112386,4292.8,4292.7,6.02797482]
[1757153321663,1.85782386,4292.8,4292.7,6.02797482]
[1757153321814,0.45562386,4292.8,4292.7,6.02797482]
[1757153324761,2.16112386,4292.8,4292.7,6.02797482]
[1757153325264,2.16112386,4292.8,4292.7,9.88997482]
[1757153329129,2.16112386,4292.8,4292.7,6.02797482]
[1757153329330,2.16112386,4292.8,4292.7,9.88997482]
[1757153329635,2.16112386,4292.8,4292.7,6.02797482]
[1757153329838,1.72732386,4292.8,4292.7,9.88997482]
[1757153330533,2.16112386,4292.8,4292.7,9.88997482]
[1757153345256,2.16112386,4292.8,4292.7,9.88897482]
[1757153346794,2.38883625,4292.8,4292.7,5.352]
[1757153347007,0.908,4292.7,4291.7,2.33007557]
[1757153347286,1.86511988,4292.6,4291.9,2.32992086]
[1757153347461,1.86511988,4292.6,4292.0,3.27]
[1757153347664,0.3033,4292.1,4292.0,3.27]
[1757153347972,2.1393,4292.1,4292.0,5.59991612]
[1757153348161,2.35323,4292.1,4292.0,5.59991612]
[1757153349354,2.1393,4292.1,4292.0,5.59991612]
[1757153350685,2.1393,4292.1,4292.0,2.32991612]
[1757153350857,2.1393,4292.1,4292.0,6.19091612]
[1757153352685,2.1393,4292.1,4292.0,2.32991612]
[1757153352873,2.1393,4292.1,4292.0,6.19191612]
[1757153354556,2.35323,4292.1,4292.0,6.19191612]
[1757153354996,2.35323,4292.1,4291.7,2.33006772]
[1757153355299,2.35323,4292.1,4290.2,0.2041]
[1757153355300,0.116,4291.9,4291.6,0.00011625]
[1757153355474,1.7105,4292.0,4291.6,0.00011625]
[1757153355475,1.7105,4292.0,4291.8,1.712]
[1757153355679,2.0238,4291.9,4291.8,1.712]
[1757153355887,2.0238,4291.9,4291.8,13.487]
[1757153356390,2.0238,4291.9,4291.8,2.469e-05]
[1757153356624,2.247573,4291.9,4291.8,3.86202469]
[1757153356778,2.247573,4291.9,4291.8,6.19204938]
[1757153359120,2.247573,4291.9,4291.8,3.86202469]
[1757153359325,2.247573,4291.9,4291.8,6.19204938]
[1757153359494,2.0238,4291.9,4291.8,6.19204938]
[1757153359691,2.0238,4291.9,4291.8,3.86202469]
[1757153361624,2.0238,4291.9,4291.8,6.19204938]
[1757153361821,2.0238,4291.9,4291.8,2.33004938]
[1757153361982,2.0238,4291.9,4291.8,3.86202469]
[1757153362181,2.22618,4291.9,4291.8,2.469e-05]
[1757153362429,2.22618,4291.9,4291.8,3.86202469]
[1757153363526,2.22618,4291.9,4291.8,3.86602469]
[1757153364118,2.22718,4291.9,4291.8,3.86602469]
[1757153365491,2.22718,4291.9,4291.8,17.35602469]
[1757153365890,2.22718,4291.9,4291.8,13.49402469]
[1757153366126,2.22718,4291.9,4291.8,17.35602469]
[1757153371630,2.22718,4291.9,4291.8,13.49]
[1757153371838,2.22718,4291.9,4291.3,0.004]
[1757153372032,0.116,4291.5,4291.3,2.33029618]
[1757153372560,0.116,4291.5,4290.8,0.114]
[1757153372561,0.5445,4291.5,4291.4,2.33024187]
[1757153372762,1.5953,4291.5,4291.1,2.3303734]
[1757153372963,0.116,4291.1,4290.9,2.33050627]
[1757153373260,0.4285,4291.3,4291.1,2.33037477]
[1757153373626,1.282,4291.4,4291.1,2.33037477]
[1757153373627,0.4285,4291.2,4291.1,2.33037477]
[1757153374359,1.282,4291.4,4291.2,3.0]
[1757153374545,1.282,4291.4,4291.3,3.862]
[1757153375560,1.5953,4291.4,4291.3,17.352]
[1757153375722,2.0238,4291.4,4291.3,17.352]
[1757153376465,0.4285,4291.4,4291.3,17.352]
[1757153376760,0.4285,4291.4,4291.3,19.68229618]
[1757153377162,0.4285,4291.4,4291.3,20.352]
[1757153377360,2.0238,4291.4,4291.3,20.352]
[1757153378464,2.45919464,4291.4,4291.3,16.49]
[1757153378672,5.58143651,4291.4,4291.3,10.928]
[1757153378822,5.58143651,4291.4,4290.3,0.698869]
[1757153379022,0.4576287,4291.3,4290.4,5.33074475]
[1757153379255,4.04086254,4291.2,4290.4,2.33077214]
[1757153379443,0.4285,4291.1,4290.4,3.02965172]
[1757153379645,0.4346,4291.0,4290.4,3.02965172]
[1757153380049,0.4346,4291.0,4290.5,5.33068747]
[1757153380410,0.4346,4291.0,4290.6,3.862]
[1757153380530,4.37512346,4291.2,4290.6,3.862]
[1757153380730,0.4346,4290.9,4290.6,3.862]
[1757153381828,4.37512346,4291.2,4290.6,3.862]
[1757153382029,0.4346,4291.1,4290.6,3.862]
[1757153382231,1.8393,4291.0,4290.6,3.862]
[1757153382429,0.4346,4290.9,4290.6,3.862]
[1757153383068,0.4346,4290.8,4290.6,3.862]
[1757153385656,0.4346,4290.8,4290.7,13.492]
[1757153387288,0.4346,4290.8,4290.7,17.355]
[1757153393191,2.1371,4290.8,4290.7,17.355]
[1757153394782,0.7324,4290.8,4290.7,17.355]
[1757153394985,0.4346,4290.8,4290.7,17.355]
[1757153396308,0.4346,4290.8,4290.7,13.494]
[1757153397510,0.4346,4290.8,4290.7,17.357]
[1757153400486,0.4356,4290.8,4290.7,17.357]
[1757153401736,0.7334,4290.8,4290.7,13.494]
[1757153401925,2.1381,4290.8,4290.7,13.494]
[1757153402095,2.35191,4290.8,4290.7,17.357]
[1757153403529,2.1381,4290.8,4290.7,17.357]
[1757153404033,0.001,4290.8,4290.7,17.357]
[1757153404623,0.4356,4290.8,4290.7,17.357]
[1757153405401,1.8403,4290.8,4290.7,17.357]
[1757153406347,1.8403,4290.8,4290.7,13.494]
[1757153406526,2.1381,4290.8,4290.3,3.0]
[1757153406851,0.5506,4290.7,4290.3,2.99972809]
[1757153407065,0.4346,4290.7,4290.3,2.99972809]
[1757153407225,0.4346,4290.7,4290.4,2.330785]
[1757153407629,0.116,4290.4,4290.3,2.99944385]
[1757153408040,0.116,4290.4,4290.2,2.33088953]
[1757153408240,0.116,4290.4,4290.3,2.33083933]
[1757153408441,0.116,4290.4,4290.2,2.33072886]
[1757153408829,0.116,4290.4,4290.1,2.33078638]
[1757153409152,0.001,4290.8,4290.4,2.33078051]
[1757153409347,0.4356,4290.8,4290.5,3.863]
[1757153409548,0.4346,4290.7,4290.5,3.863]
[1757153409748,1.7308,4290.7,4290.5,3.863]
[1757153410116,0.4731,4290.6,4290.5,3.863]
[1757153412252,0.7832,4290.6,4290.5,3.863]
[1757153412558,2.0794,4290.6,4290.5,3.863]
[1757153414079,0.116,4290.5,4290.3,2.3308251]
[1757153414383,1.8853,4290.5,4290.4,3.863]
[1757153414681,0.116,4290.5,4290.4,3.863]
[1757153414880,0.4261,4290.5,4290.4,3.863]
[1757153415271,2.1954,4290.5,4290.4,3.863]
[1757153415470,2.1954,4290.5,4290.4,17.357]
[1757153417688,2.1954,4290.5,4290.4,19.687785]
[1757153418377,2.1954,4290.5,4290.4,15.824785]
[1757153418580,2.1954,4290.5,4290.4,19.687785]
[1757153418748,0.5891,4290.5,4290.4,19.687785]
[1757153419585,0.116,4290.5,4290.4,19.687785]
[1757153420709,0.5891,4290.5,4290.4,19.687785]
[1757153426905,0.116,4290.5,4290.4,15.824785]
[1757153427072,0.116,4290.5,4290.4,19.687785]
[1757153427274,0.5891,4290.5,4290.4,19.687785]
[1757153431815,0.001,4290.8,4290.7,2.33062204]
[1757153432019,0.117,4290.8,4290.7,6.19262204]
[1757153432197,0.0006263,4290.8,4290.7,6.19262204]
[1757153432911,0.0006263,4290.8,4290.7,6.89143487]
[1757153436099,0.117,4291.3,4291.2,2.33035048]
[1757153436336,0.117,4291.3,4291.2,7.90535048]
[1757153436729,0.117,4291.3,4291.2,8.60408681]
[1757153437720,0.001,4291.3,4291.2,8.60408681]
[1757153438907,0.001,4291.3,4291.2,4.74208681]
[1757153439108,0.001,4291.3,4291.2,11.60408681]
[1757153447224,0.001,4291.3,4291.2,41.72008681]
[1757153451490,2.0427,4291.3,4291.2,36.14508681]
[1757153451651,2.0427,4291.3,4291.2,9.89008681]
[1757153455491,2.0427,4291.3,4291.2,26.16508681]
[1757153461221,1.756,4291.3,4291.2,26.16508681]
[1757153461508,0.4377,4291.3,4291.2,26.16508681]
[1757153462704,0.001,4291.3,4291.2,26.16508681]
[1757153463695,0.4377,4291.3,4291.2,26.16508681]
[1757153464320,1.3183,4291.5,4291.4,2.33024187]
[1757153464515,1.605,4291.5,4291.4,6.19124187]
[1757153465212,1.605,4291.5,4291.4,6.88993752]
[1757153466320,2.0417,4291.5,4291.4,6.88993752]
[1757153466521,0.116,4291.6,4291.5,5.33018758]
[1757153466724,0.116,4291.6,4291.5,5.62218758]
[1757153467322,0.116,4291.6,4291.5,5.33018758]
[1757153467622,0.116,4291.6,4291.5,6.02888323]
[1757153468224,2.1577,4291.6,4291.5,6.02888323]
[1757153468538,2.1577,4291.6,4291.5,9.88988323]
[1757153470751,2.1587,4291.6,4291.5,9.88988323]
[1757153471850,2.1587,4291.6,4291.5,6.02888323]
[1757153471995,2.1587,4291.6,4291.5,9.88988323]
[1757153479460,2.1587,4291.6,4291.5,11.60288323]
[1757153480537,2.1587,4291.6,4291.5,2.41169565]
[1757153480750,5.38350328,4291.6,4291.5,7.066]
[1757153480952,5.38350328,4291.6,4290.3,0.69888446]
[1757153480953,0.908,4291.5,4290.3,0.69888446]
[1757153481277,0.792,4291.1,4290.4,6.19175184]
[1757153481478,1.7766,4291.0,4290.5,3.0]
[1757153481676,1.95426,4290.9,4290.6,3.861]
[1757153481847,0.2951,4290.7,4290.6,3.861]
[1757153482043,2.0717,4290.7,4290.5,2.33071167]
[1757153482258,1.7766,4290.6,4290.5,2.33071167]
[1757153482455,1.7766,4290.6,4289.9,0.69876303]
[1757153482456,2.0717,4290.6,4290.4,2.33074236]
[1757153482673,1.7766,4290.5,4290.4,2.33074236]
[1757153482878,2.0717,4290.5,4290.3,2.33079625]
[1757153483176,0.4606,4290.4,4290.2,2.33047212]
[1757153483382,0.4606,4290.4,4290.3,3.861]
[1757153483565,0.4606,4290.4,4289.9,0.69794682]
[1757153483770,0.4606,4290.4,4290.3,2.33083933]